bitfinex/quotes_SOLUSD_20230701
["timestamp","ask_amount","ask_price","bid_price","bid_amount"]
[1688201845856,55.0,18.447,18.431,82.035]
[1688201846055,349.429,18.449,18.431,82.035]
[1688201846056,55.0,18.448,18.431,82.035]
[1688201846357,326.5,18.447,18.431,82.035]
[1688201846555,326.5,18.445,18.431,82.035]
[1688201846757,381.5,18.444,18.431,82.035]
[1688201846955,326.5,18.444,18.431,82.035]
[1688201847154,381.5,18.443,18.431,82.035]
[1688201848165,55.0,18.443,18.431,82.035]
[1688201848365,326.5,18.448,18.431,92.87219922]
[1688201848569,140.881666,18.457,18.431,92.87219922]
[1688201848570,27.409666,18.457,18.432,65.83719922]
[1688201848866,22.918,18.457,18.439,189.754]
[1688201849053,22.918,18.457,18.445,22.932]
[1688201849653,326.5,18.456,18.445,22.932]
[1688201850653,372.336,18.457,18.445,22.932]
[1688201851063,326.5,18.455,18.445,22.932]
[1688201851270,326.5,18.453,18.445,22.932]
[1688201851570,326.5,18.451,18.445,22.932]
[1688201852071,55.0,18.45,18.445,22.932]
[1688201855069,22.918,18.457,18.445,22.932]
[1688201855278,381.5,18.456,18.445,22.932]
[1688201855454,326.5,18.466,18.445,22.932]
[1688201855655,59.044,18.463,18.446,20.0]
[1688201855950,446.7422,18.466,18.452,81.941]
[1688201856753,554.4312,18.466,18.452,81.941]
[1688201858256,381.5,18.465,18.452,81.941]
[1688201859966,55.0,18.465,18.452,81.941]
[1688201860475,381.5,18.465,18.452,81.941]
[1688201860786,404.408,18.465,18.452,22.924]
[1688201861166,404.408,18.465,18.452,81.941]
[1688201861964,381.5,18.465,18.452,81.941]
[1688201867571,326.5,18.465,18.452,81.941]
[1688201869069,326.5,18.463,18.452,81.941]
[1688201869275,326.5,18.461,18.452,81.941]
[1688201869485,55.0,18.46,18.452,81.941]
[1688201870285,326.5,18.459,18.452,81.941]
[1688201870480,326.5,18.457,18.452,81.941]
[1688201870676,326.5,18.455,18.452,81.941]
[1688201871090,55.0,18.454,18.452,81.941]
[1688201875182,381.5,18.454,18.452,81.941]
[1688201875383,381.5,18.454,18.45,22.926]
[1688201875808,381.5,18.454,18.448,22.928]
[1688201876084,381.5,18.454,18.442,166.786]
[1688201876296,381.5,18.454,18.446,22.93]
[1688201876677,404.422,18.454,18.446,22.93]
[1688201877073,404.422,18.454,18.438,107.765]
[1688201877286,404.422,18.454,18.442,22.935]
[1688201877484,326.5,18.449,18.431,59.083]
[1688201877788,34.99,18.45,18.433,59.076]
[1688201877789,326.5,18.447,18.433,59.076]
[1688201878098,326.5,18.445,18.436,22.943]
[1688201878297,326.5,18.443,18.436,22.943]
[1688201878597,326.5,18.441,18.436,22.943]
[1688201879088,381.5,18.44,18.436,22.943]
[1688201879587,381.5,18.44,18.434,22.945]
[1688201885888,404.439,18.44,18.424,107.842]
[1688201886083,404.439,18.44,18.429,22.952]
[1688201886286,326.5,18.438,18.43,20.0]
[1688201886597,326.5,18.436,18.431,22.949]
[1688201886986,55.0,18.435,18.431,22.949]
[1688201887779,381.5,18.435,18.431,22.949]
[1688201887985,381.5,18.435,18.429,22.951]
[1688201889282,381.5,18.435,18.427,22.954]
[1688201891113,404.445,18.435,18.425,22.957]
[1688201892608,381.5,18.435,18.425,22.957]
[1688201893606,22.942,18.438,18.425,22.957]
[1688201894913,326.5,18.436,18.425,22.957]
[1688201895207,326.5,18.434,18.425,22.957]
[1688201895709,381.5,18.433,18.425,22.957]
[1688201905205,404.448,18.433,18.425,22.957]
[1688201907713,381.5,18.433,18.425,22.957]
[1688201908215,404.448,18.433,18.425,22.957]
[1688201909803,381.5,18.433,18.425,22.957]
[1688201910012,404.448,18.433,18.425,22.957]
[1688201912915,404.448,18.433,18.423,22.959]
[1688201913214,326.5,18.431,18.423,22.959]
[1688201913418,326.5,18.429,18.423,22.959]
[1688201913805,55.0,18.428,18.423,22.959]
[1688201914121,421.2921,18.432,18.423,22.959]
[1688201915725,55.0,18.431,18.423,22.959]
[1688201924523,381.5,18.431,18.423,22.959]
[1688201924726,55.0,18.431,18.423,22.959]
[1688201931922,381.5,18.432,18.423,22.959]
[1688201939445,326.5,18.438,18.423,22.959]
[1688201940538,326.5,18.436,18.423,22.959]
[1688201940844,55.0,18.435,18.423,22.959]
[1688201943146,381.5,18.436,18.423,22.959]
[1688201945045,404.444,18.436,18.423,22.959]
[1688201948345,381.5,18.436,18.423,22.959]
[1688201948734,404.444,18.436,18.423,22.959]
[1688201948940,381.5,18.436,18.423,22.959]
[1688201949535,134.62763058,18.441,18.423,22.959]
[1688201949743,49.70663058,18.441,18.424,156.79984542]
[1688201950040,326.5,18.442,18.429,22.952]
[1688201950434,326.5,18.442,18.433,22.947]
[1688201950646,326.5,18.444,18.433,22.947]
[1688201951427,326.5,18.442,18.433,22.947]
[1688201951627,55.0,18.441,18.433,22.947]
[1688201953441,326.5,18.44,18.433,22.947]
[1688201953647,326.5,18.438,18.433,22.947]
[1688201954056,381.5,18.437,18.433,22.947]
[1688201954352,381.5,18.437,18.43,20.0]
[1688201954530,381.5,18.437,18.433,22.947]
[1688201961659,381.5,18.437,18.431,22.949]
[1688201961961,381.5,18.437,18.427,59.097]
[1688201962644,381.5,18.437,18.431,22.95]
[1688201963351,22.945,18.436,18.418,107.881]
[1688201963551,326.5,18.434,18.429,22.952]
[1688201963848,381.5,18.433,18.429,22.952]
[1688201964045,381.5,18.432,18.429,22.952]
[1688201964254,349.449,18.432,18.423,22.96]
[1688201964441,326.5,18.43,18.424,22.959]
[1688201964950,326.5,18.428,18.418,59.124]
[1688201965150,326.5,18.428,18.421,22.962]
[1688201965354,55.0,18.427,18.421,22.962]
[1688201965544,55.0,18.427,18.421,82.079]
[1688201966359,381.5,18.427,18.421,22.962]
[1688201966547,381.5,18.427,18.415,59.133]
[1688201966752,381.5,18.427,18.421,22.961]
[1688201966964,381.5,18.427,18.418,22.966]
[1688201967152,381.5,18.427,18.42,22.963]
[1688201967353,381.5,18.427,18.421,20.0]
[1688201967547,381.5,18.427,18.417,22.966]
[1688201967548,404.455,18.427,18.417,22.966]
[1688201968250,381.5,18.427,18.417,22.966]
[1688201969745,404.455,18.427,18.417,22.966]
[1688201970558,404.455,18.427,18.41,59.151]
[1688201970763,404.455,18.427,18.412,22.973]
[1688201975047,432.09645204,18.427,18.412,22.973]
[1688201976361,354.14145204,18.427,18.412,22.973]
[1688201977570,326.5,18.425,18.412,22.973]
[1688201977749,55.0,18.424,18.412,22.973]
[1688201978867,326.5,18.424,18.412,22.973]
[1688201979070,55.0,18.423,18.412,22.973]
[1688201984261,326.5,18.429,18.412,22.973]
[1688201985363,349.451,18.43,18.412,22.973]
[1688201986076,326.5,18.428,18.412,22.973]
[1688201986261,381.5,18.427,18.412,22.973]
[1688201986457,55.0,18.426,18.412,22.973]
[1688201987064,77.957,18.426,18.412,22.973]
[1688201987264,55.0,18.426,18.412,22.973]
[1688201988180,381.5,18.426,18.412,22.973]
[1688201990264,55.0,18.426,18.412,22.973]
[1688201991069,404.457,18.426,18.412,22.973]
[1688201992179,77.957,18.426,18.412,22.973]
[1688201992384,326.5,18.429,18.412,22.973]
[1688201993367,349.453,18.429,18.412,22.973]
[1688201993566,326.5,18.427,18.412,22.973]
[1688201993790,55.0,18.426,18.412,22.973]
[1688201995277,381.5,18.426,18.412,22.973]
[1688201996080,404.456,18.426,18.412,22.973]
[1688201996282,381.5,18.426,18.412,22.973]
[1688201996490,361.61,18.43,18.412,22.973]
[1688201996692,349.452,18.43,18.418,22.966]
[1688201996870,326.5,18.43,18.422,22.961]
[1688201997978,55.0,18.429,18.422,22.961]
[1688201999889,381.5,18.429,18.422,22.961]
[1688202004597,404.453,18.429,18.418,22.965]
[1688202004886,414.49690666,18.429,18.419,22.964]
[1688202008403,404.453,18.429,18.419,22.964]
[1688202010476,432.09296094,18.429,18.419,22.964]
[1688202015190,377.09296094,18.429,18.419,22.964]
[1688202015392,354.13996094,18.429,18.419,22.964]
[1688202015689,326.5,18.429,18.419,22.964]
[1688202016093,349.453,18.429,18.419,22.964]
[1688202016508,326.5,18.427,18.419,22.964]
[1688202016801,326.5,18.425,18.419,22.964]
[1688202017104,381.5,18.424,18.419,22.964]
[1688202017984,349.453,18.429,18.419,22.964]
[1688202019603,326.5,18.427,18.419,22.964]
[1688202019903,381.5,18.426,18.419,22.964]
[1688202020103,381.5,18.425,18.419,22.964]
[1688202020308,326.5,18.425,18.419,22.964]
[1688202020604,55.0,18.424,18.419,22.964]
[1688202020814,381.5,18.424,18.41,35.11]
[1688202020989,404.46,18.424,18.414,22.97]
[1688202021187,381.5,18.424,18.414,22.97]
[1688202021608,326.5,18.427,18.414,82.109]
[1688202021790,326.5,18.429,18.414,82.109]
[1688202022905,326.5,18.427,18.414,82.109]
[1688202023110,55.0,18.426,18.414,81.109]
[1688202024809,326.5,18.425,18.414,81.109]
[1688202025008,55.0,18.424,18.414,81.109]
[1688202025805,381.5,18.424,18.414,21.97]
[1688202026109,404.459,18.424,18.414,21.97]
[1688202028610,381.5,18.424,18.414,21.97]
[1688202034613,380.5,18.424,18.414,21.97]
[1688202037719,326.5,18.428,18.414,21.97]
[1688202038013,326.5,18.429,18.414,21.97]
[1688202039119,55.0,18.428,18.414,21.97]
[1688202039320,55.0,18.429,18.414,21.97]
[1688202039523,55.0,18.429,18.42,35.11]
[1688202039725,55.0,18.429,18.422,22.96]
[1688202040310,381.5,18.429,18.422,22.96]
[1688202040505,404.453,18.429,18.42,22.963]
[1688202043029,349.453,18.429,18.42,22.963]
[1688202044620,55.0,18.428,18.42,22.963]
[1688202047207,404.454,18.428,18.42,22.963]
[1688202047408,404.454,18.428,18.418,22.965]
[1688202051915,22.954,18.428,18.418,22.965]
[1688202052117,404.456,18.427,18.418,22.965]
[1688202056231,404.456,18.427,18.416,22.968]
[1688202059840,414.49990666,18.427,18.41,94.262]
[1688202060829,414.49990666,18.427,18.415,22.969]
[1688202062831,414.49990666,18.427,18.407,22.979]
[1688202062832,22.969,18.416,18.407,22.979]
[1688202063139,326.5,18.414,18.406,26.98079286]
[1688202063315,22.976,18.41,18.401,22.986]
[1688202063516,326.5,18.412,18.401,22.986]
[1688202063727,326.5,18.41,18.401,22.986]
[1688202063915,361.61,18.41,18.401,22.986]
[1688202064113,326.5,18.408,18.401,22.986]
[1688202064734,381.5,18.407,18.401,22.986]
[1688202067321,381.5,18.407,18.399,22.989]
[1688202072432,381.5,18.407,18.399,22.489]
[1688202074826,404.48,18.407,18.399,22.489]
[1688202075433,404.48,18.407,18.399,21.489]
[1688202076747,381.5,18.407,18.399,21.489]
[1688202077626,408.92289406,18.407,18.399,21.489]
[1688202078032,381.5,18.407,18.399,21.489]
[1688202078942,381.5,18.407,18.399,20.489]
[1688202079536,326.5,18.409,18.399,20.489]
[1688202080036,326.5,18.413,18.4,35.19]
[1688202080234,326.5,18.413,18.403,22.984]
[1688202080641,349.471,18.415,18.403,22.984]
[1688202083739,349.471,18.415,18.403,22.484]
[1688202083943,326.5,18.413,18.403,22.484]
[1688202084148,326.5,18.411,18.403,22.484]
[1688202084648,55.0,18.41,18.403,22.484]
[1688202084852,381.5,18.41,18.403,22.484]
[1688202085954,55.0,18.41,18.403,22.484]
[1688202088433,326.5,18.415,18.403,22.484]
[1688202089141,92.9961,18.416,18.403,22.484]
[1688202089142,26.57177051,18.421,18.403,22.484]
[1688202089451,1.91688674,18.421,18.403,22.484]
[1688202089778,326.5,18.42,18.403,22.484]
[1688202089959,349.464,18.42,18.403,22.484]
[1688202090452,381.5,18.419,18.403,22.484]
[1688202091252,381.5,18.419,18.4,175.93]
[1688202091434,1.0076014,18.418,18.403,22.984]
[1688202091635,404.465,18.419,18.403,22.984]
[1688202095343,414.50890666,18.419,18.403,22.984]
[1688202101148,414.50890666,18.419,18.403,22.484]
[1688202105171,0.67101547,18.418,18.403,22.484]
[1688202105353,22.968,18.417,18.403,22.484]
[1688202105551,381.5,18.416,18.403,22.484]
[1688202107452,404.469,18.416,18.403,22.484]
[1688202107654,414.51290666,18.416,18.403,22.484]
[1688202107863,326.5,18.414,18.401,22.987]
[1688202108061,22.976,18.411,18.401,22.987]
[1688202108361,22.979,18.408,18.401,22.987]
[1688202108564,381.5,18.407,18.401,22.987]
[1688202111673,55.0,18.407,18.401,22.987]
[1688202112176,28.39295605,18.414,18.401,130.97]
[1688202112470,95.8588,18.415,18.401,130.97]
[1688202112665,422.3588,18.415,18.401,130.97]
[1688202113450,326.5,18.413,18.401,130.97]
[1688202113664,326.5,18.411,18.401,22.987]
[1688202114077,55.0,18.41,18.401,22.987]
[1688202115754,326.5,18.414,18.401,130.97]
[1688202117073,55.0,18.413,18.401,130.97]
[1688202118966,381.5,18.413,18.401,130.97]
[1688202121953,404.473,18.413,18.401,22.987]
[1688202122270,381.5,18.413,18.401,22.987]
[1688202123169,95.8588,18.415,18.401,22.987]
[1688202124063,95.8588,18.415,18.405,82.146]
[1688202124867,3.12236443,18.42,18.405,82.146]
[1688202125068,329.62236443,18.42,18.405,82.146]
[1688202125268,381.5,18.419,18.405,82.146]
[1688202125573,326.5,18.419,18.405,82.146]
[1688202126171,1.0340974,18.418,18.405,82.146]
[1688202126889,26.27346914,18.421,18.405,82.146]
[1688202127062,6.27346914,18.421,18.405,82.146]
[1688202127262,326.5,18.426,18.41,35.19]
[1688202127263,6.27346914,18.422,18.41,35.19]
[1688202127471,6.27346914,18.425,18.413,190.022]
[1688202127674,326.5,18.428,18.413,190.022]
[1688202127869,22.955,18.427,18.413,190.022]
[1688202128268,326.5,18.426,18.413,190.022]
[1688202128478,22.958,18.425,18.413,190.022]
[1688202129377,55.0,18.424,18.413,190.022]
[1688202130462,381.5,18.425,18.413,190.022]
[1688202131662,55.0,18.425,18.413,190.022]
[1688202136087,423.3939,18.429,18.413,82.113]
[1688202136088,381.5,18.426,18.413,82.113]
[1688202136274,22.958,18.425,18.413,82.113]
[1688202136470,326.5,18.423,18.413,82.113]
[1688202136870,55.0,18.422,18.413,82.113]
[1688202137686,404.462,18.422,18.413,22.972]
[1688202138896,381.5,18.422,18.413,22.972]
[1688202141893,404.461,18.422,18.413,22.972]
[1688202142191,381.5,18.422,18.413,22.972]
[1688202143385,27.74114985,18.424,18.413,22.972]
[1688202143589,326.5,18.423,18.413,22.972]
[1688202144477,326.5,18.426,18.413,22.972]
[1688202144879,326.5,18.426,18.413,130.884]
[1688202145576,326.5,18.428,18.413,130.884]
[1688202147081,381.5,18.427,18.413,130.884]
[1688202147387,404.456,18.427,18.413,130.884]
[1688202149383,381.5,18.427,18.413,130.884]
[1688202150506,55.0,18.427,18.413,130.884]
[1688202150709,55.0,18.428,18.413,130.884]
[1688202151498,2.09496032,18.428,18.413,130.884]
[1688202151682,2.09496032,18.428,18.413,141.72119922]
[1688202152398,22.953,18.429,18.413,141.72119922]
[1688202152789,55.0,18.428,18.413,141.72119922]
[1688202154281,404.454,18.428,18.413,141.72119922]
[1688202155589,404.454,18.428,18.413,130.884]
[1688202157007,22.954,18.428,18.413,130.884]
[1688202158508,55.0,18.427,18.413,130.884]
[1688202160494,55.0,18.427,18.413,141.72119922]
[1688202160810,326.5,18.43,18.413,141.72119922]
[1688202161029,0.84659662,18.43,18.419,82.088]
[1688202161316,349.448,18.433,18.423,22.96]
[1688202161808,22.948,18.433,18.423,22.96]
[1688202162217,55.0,18.432,18.423,22.96]
[1688202162520,372.406,18.435,18.423,22.96]
[1688202163011,349.446,18.435,18.423,22.96]
[1688202163795,55.0,18.434,18.423,22.96]
[1688202163999,77.947,18.434,18.423,22.96]
[1688202164314,404.447,18.434,18.423,22.96]
[1688202165514,414.35684904,18.434,18.423,22.96]
[1688202169911,391.40984904,18.434,18.423,22.96]
[1688202170114,55.0,18.434,18.423,22.96]
[1688202170312,424.5526,18.436,18.423,22.96]
[1688202170517,0.85552627,18.435,18.423,22.96]
[1688202171402,3.64832656,18.436,18.423,22.96]
[1688202171608,385.14832656,18.436,18.423,22.96]
[1688202173224,408.09232656,18.436,18.423,22.96]
[1688202173522,9.90984904,18.435,18.423,22.96]
[1688202173820,22.949,18.432,18.423,22.96]
[1688202174117,326.5,18.43,18.423,22.96]
[1688202174520,55.0,18.429,18.423,22.96]
[1688202177800,22.944,18.436,18.423,22.96]
[1688202178000,63.82025388,18.435,18.423,22.96]
[1688202178300,8.82025388,18.435,18.423,22.96]
[1688202178500,11.85778048,18.436,18.423,22.96]
[1688202179725,11.85778048,18.434,18.423,22.96]
[1688202182124,55.0,18.433,18.423,22.96]
[1688202182326,3.84231317,18.434,18.423,22.96]
[1688202182733,26.78831317,18.434,18.423,22.96]
[1688202182905,404.448,18.433,18.423,22.96]
[1688202183109,10.07327469,18.432,18.422,22.961]
[1688202183316,22.951,18.43,18.422,22.961]
[1688202183612,381.5,18.429,18.422,22.961]
[1688202188426,404.453,18.429,18.422,22.961]
[1688202190018,404.453,18.429,18.42,22.963]
[1688202190215,4.47945244,18.428,18.42,22.963]
[1688202190412,326.5,18.427,18.42,22.963]
[1688202190612,381.5,18.426,18.42,22.963]
[1688202191819,381.5,18.426,18.418,22.965]
[1688202193321,404.456,18.426,18.418,22.965]
[1688202193526,2.09087154,18.425,18.416,22.968]
[1688202193727,25.04887154,18.425,18.416,22.968]
[1688202193916,326.5,18.423,18.416,22.968]
[1688202194424,55.0,18.422,18.416,22.968]
[1688202202450,326.5,18.426,18.416,22.968]
[1688202202647,59.59992941,18.425,18.416,22.968]
[1688202202833,55.0,18.425,18.416,22.968]
[1688202211859,77.958,18.425,18.416,22.968]
[1688202214034,55.0,18.425,18.416,22.968]
[1688202214252,2.85894928,18.425,18.416,22.968]
[1688202218943,57.85894928,18.425,18.416,22.968]
[1688202219248,55.0,18.425,18.416,22.968]
[1688202221548,55.0,18.426,18.416,22.968]
[1688202221845,3.14363104,18.425,18.416,22.968]
[1688202230460,3.14363104,18.425,18.42,34.84]
[1688202230663,26.90931298,18.431,18.42,34.84]
[1688202230664,26.90931298,18.431,18.421,82.077]
[1688202230967,22.946,18.435,18.421,82.077]
[1688202231643,12.74003634,18.434,18.421,82.077]
[1688202231858,55.0,18.433,18.421,82.077]
[1688202232058,2.96578461,18.434,18.421,82.077]
[1688202233463,57.96578461,18.434,18.421,82.077]
[1688202233662,80.91278461,18.434,18.421,82.077]
[1688202235965,57.96578461,18.434,18.421,82.077]
[1688202236163,25.91278461,18.434,18.421,82.077]
[1688202236361,2.96578461,18.432,18.421,82.077]
[1688202237351,55.0,18.433,18.421,82.077]
[1688202239271,349.442,18.438,18.421,128.6008972]
[1688202239570,14.70262777,18.437,18.421,128.6008972]
[1688202240269,14.70262777,18.437,18.421,82.077]
[1688202240466,14.70262777,18.437,18.422,46.5238972]
[1688202240668,55.0,18.436,18.426,22.956]
[1688202240968,14.70262777,18.435,18.426,22.956]
[1688202241168,55.0,18.434,18.426,22.956]
[1688202241465,0.80089114,18.435,18.426,22.956]
[1688202243471,495.9206,18.441,18.426,22.956]
[1688202243472,4.33265492,18.437,18.427,66.5238972]
[1688202243676,35.94248387,18.445,18.43,117.019]
[1688202243865,13.00948387,18.445,18.43,117.019]
[1688202244067,13.00948387,18.445,18.43,163.5428972]
[1688202245776,13.00948387,18.445,18.431,57.36109642]
[1688202246068,13.00948387,18.445,18.435,22.945]
[1688202246271,22.931,18.447,18.435,22.945]
[1688202246469,2.29966711,18.446,18.435,22.945]
[1688202247359,57.29966711,18.446,18.435,22.945]
[1688202247562,55.0,18.446,18.435,22.945]
[1688202249062,34.78,18.45,18.435,22.945]
[1688202249275,9.88981019,18.45,18.443,22.935]
[1688202249580,22.925,18.452,18.443,22.935]
[1688202250566,55.0,18.451,18.443,22.935]
[1688202250766,55.0,18.451,18.436,10.83719922]
[1688202250767,34.78,18.45,18.436,10.83719922]
[1688202250959,22.931,18.447,18.439,22.94]
[1688202251160,55.0,18.446,18.439,22.94]
[1688202254980,55.0,18.447,18.439,22.94]
[1688202255182,34.78,18.45,18.439,22.94]
[1688202255367,22.927,18.45,18.439,22.94]
[1688202255568,58.037,18.45,18.439,22.94]
[1688202255973,22.927,18.45,18.439,22.94]
[1688202256575,55.0,18.449,18.439,22.94]
[1688202256884,22.929,18.448,18.439,22.94]
[1688202257095,55.0,18.447,18.439,22.94]
[1688202257686,77.93,18.447,18.439,22.94]
[1688202258569,55.0,18.447,18.439,22.94]
[1688202258867,361.29,18.46,18.44,55.03]
[1688202259070,14.67070251,18.459,18.446,22.931]
[1688202259994,55.0,18.458,18.446,22.931]
[1688202260286,326.5,18.46,18.446,22.931]
[1688202260590,4.49401071,18.459,18.446,22.931]
[1688202261677,29.15452896,18.463,18.446,22.931]
[1688202263273,9.15452896,18.463,18.446,22.931]
[1688202263473,12.32994023,18.465,18.453,22.921]
[1688202263989,12.32994023,18.465,18.454,75.0]
[1688202264285,398.5,18.475,18.457,81.918]
[1688202264474,47.04994023,18.474,18.457,81.918]
[1688202264673,34.72,18.474,18.457,81.918]
[1688202264990,326.5,18.477,18.457,81.918]
[1688202265193,354.2130447,18.476,18.457,81.918]
[1688202266986,27.7130447,18.476,18.457,81.918]
[1688202267194,7.7130447,18.476,18.457,81.918]
[1688202267484,7.7130447,18.477,18.458,75.0]
[1688202267685,7.7130447,18.477,18.463,22.909]
[1688202267983,97.7286,18.478,18.463,22.909]
[1688202268680,55.0,18.477,18.463,22.909]
[1688202274282,381.5,18.477,18.463,22.909]
[1688202277697,55.0,18.477,18.463,22.909]
[1688202279187,381.5,18.477,18.463,22.909]
[1688202284996,326.5,18.469,18.461,22.912]
[1688202285497,326.5,18.467,18.461,22.912]
[1688202285796,55.0,18.466,18.461,22.912]
[1688202286390,326.5,18.467,18.461,22.912]
[1688202286599,55.0,18.466,18.461,22.912]
[1688202292197,35.03,18.47,18.461,22.912]
[1688202292404,326.5,18.473,18.461,22.912]
[1688202292708,20.0,18.472,18.461,22.912]
[1688202293702,55.0,18.471,18.461,22.912]
[1688202297303,381.5,18.471,18.455,22.919]
[1688202297607,1.94626909,18.468,18.446,59.035]
[1688202297786,349.409,18.464,18.447,20.0]
[1688202297983,1.33933643,18.463,18.449,22.927]
[1688202298186,1.33933643,18.463,18.451,22.925]
[1688202298187,22.916,18.459,18.451,22.925]
[1688202298399,326.5,18.462,18.451,22.925]
[1688202298694,22.915,18.459,18.451,22.925]
[1688202298904,381.5,18.458,18.443,107.735]
[1688202299102,22.922,18.454,18.443,22.934]
[1688202299415,326.5,18.456,18.443,22.934]
[1688202299592,326.5,18.454,18.443,22.934]
[1688202299998,55.0,18.453,18.443,22.934]
[1688202300993,55.0,18.454,18.443,22.934]
[1688202302291,95.4726,18.455,18.443,22.934]
[1688202302605,55.0,18.454,18.443,22.934]
[1688202302807,55.0,18.457,18.443,22.934]
[1688202303007,55.0,18.458,18.443,22.934]
[1688202305493,55.0,18.459,18.443,22.934]
[1688202306687,6.01312762,18.463,18.443,22.934]
[1688202306893,6.01312762,18.463,18.453,81.933]
[1688202307088,349.407,18.466,18.453,81.933]
[1688202307698,22.907,18.466,18.453,81.933]
[1688202308804,326.5,18.467,18.453,81.933]
[1688202309405,381.5,18.466,18.453,81.933]
[1688202309599,404.407,18.466,18.453,81.933]
[1688202312511,115.3398,18.468,18.453,81.933]
[1688202312810,92.4358,18.468,18.453,81.933]
[1688202313000,2.32696759,18.47,18.454,55.0]
[1688202313197,42.9,18.472,18.458,81.911]
[1688202313706,326.5,18.471,18.458,81.911]
[1688202313909,404.402,18.47,18.458,81.911]
[1688202315503,381.5,18.47,18.458,81.911]
[1688202315811,55.0,18.47,18.458,81.911]
[1688202316010,55.0,18.471,18.458,81.911]
[1688202318316,404.401,18.471,18.458,22.915]
[1688202318636,22.907,18.466,18.458,22.915]
[1688202318814,35.03,18.47,18.452,107.683]
[1688202318815,404.408,18.465,18.452,107.683]
[1688202319005,404.408,18.465,18.456,22.918]
[1688202321929,381.5,18.465,18.456,22.918]
[1688202322421,22.906,18.467,18.456,22.918]
[1688202322620,22.908,18.465,18.456,22.918]
[1688202323614,22.908,18.465,18.454,22.92]
[1688202323817,22.911,18.462,18.454,22.92]
[1688202324023,326.5,18.46,18.454,22.92]
[1688202324318,55.0,18.459,18.454,22.92]
[1688202326526,381.5,18.459,18.454,22.92]
[1688202327019,404.415,18.459,18.45,22.925]
[1688202332025,381.5,18.459,18.45,22.925]
[1688202332626,377.14379206,18.461,18.45,22.925]